[Event "*** Titled Tuesday Blitz"]
[Site "Chess.com"]
[Date "2021.02.16"]
[Round "10"]
[White "vaishali2001"]
[Black "GadimbayliA"]
[Result "1-0"]
[WhiteElo "2620"]
[BlackElo "2819"]
[TimeControl "180+1"]
[EndTime "11:58:27 PST"]
[Termination "vaishali2001 won by resignation"]

1. e4 {[%clk 0:03:00.9]} 1... e5 {[%clk 0:02:59.5]} 2. Nf3 {[%clk 0:03:00.2]}
2... d5 {[%clk 0:02:59.5]} 3. exd5 {[%clk 0:02:53.5]} 3... e4 {[%clk 0:02:59.2]}
4. Qe2 {[%clk 0:02:53.4]} 4... Nf6 {[%clk 0:02:59]} 5. d3 {[%clk 0:02:46.4]}
5... Bb4+ {[%clk 0:02:58.9]} 6. c3 {[%clk 0:02:23.5]} 6... O-O {[%clk
0:02:59.8]} 7. dxe4 {[%clk 0:02:20.7]} 7... Bd6 {[%clk 0:03:00]} 8. Qc2 {[%clk
0:01:55.6]} 8... Nxe4 {[%clk 0:02:58.3]} 9. Bd3 {[%clk 0:01:56.1]} 9... f5
{[%clk 0:02:58.3]} 10. O-O {[%clk 0:01:51.5]} 10... Nd7 {[%clk 0:02:56.4]} 11.
Nbd2 {[%clk 0:01:48.7]} 11... Ndc5 {[%clk 0:02:55.9]} 12. Nxe4 {[%clk
0:01:41.4]} 12... fxe4 {[%clk 0:02:56.8]} 13. Bxe4 {[%clk 0:01:42.3]} 13... Nxe4
{[%clk 0:02:55.5]} 14. Qxe4 {[%clk 0:01:43.2]} 14... Bf5 {[%clk 0:02:56]} 15.
Qh4 {[%clk 0:01:39.7]} 15... Be7 {[%clk 0:02:55.8]} 16. Bg5 {[%clk 0:01:11.4]}
16... Bxg5 {[%clk 0:02:55.6]} 17. Qxg5 {[%clk 0:01:10.3]} 17... Qxd5 {[%clk
0:02:54.6]} 18. Rfe1 {[%clk 0:00:56.6]} 18... Rae8 {[%clk 0:02:47.5]} 19. b3
{[%clk 0:00:52.4]} 19... h6 {[%clk 0:02:44.9]} 20. Qg3 {[%clk 0:00:51.1]} 20...
Qc5 {[%clk 0:02:43.9]} 21. Nd4 {[%clk 0:00:49.1]} 21... Bd7 {[%clk 0:02:38.6]}
22. h3 {[%clk 0:00:41.3]} 22... a5 {[%clk 0:02:29.5]} 23. Rxe8 {[%clk
0:00:35.5]} 23... Rxe8 {[%clk 0:02:30.4]} 24. Rd1 {[%clk 0:00:33.8]} 24... Re7
{[%clk 0:02:27.3]} 25. Kh2 {[%clk 0:00:25.4]} 25... Be8 {[%clk 0:02:18.2]} 26.
Rd3 {[%clk 0:00:23.4]} 26... Bf7 {[%clk 0:02:13.1]} 27. Re3 {[%clk 0:00:22.3]}
27... Rd7 {[%clk 0:02:13.6]} 28. Re5 {[%clk 0:00:20]} 28... Qb6 {[%clk
0:01:56.9]} 29. Nf5 {[%clk 0:00:18.1]} 29... Qf6 {[%clk 0:01:57]} 30. Ne3 {[%clk
0:00:11.2]} 30... b6 {[%clk 0:01:51.5]} 31. Ng4 {[%clk 0:00:09.4]} 31... Qd6
{[%clk 0:01:49.7]} 32. Re3 {[%clk 0:00:06.6]} 32... Qxg3+ {[%clk 0:01:48.7]} 33.
Rxg3 {[%clk 0:00:06.8]} 33... Rd2 {[%clk 0:01:48.6]} 34. Nxh6+ {[%clk
0:00:06.5]} 34... Kf8 {[%clk 0:01:49]} 35. Nxf7 {[%clk 0:00:06.2]} 35... Kxf7
{[%clk 0:01:49.9]} 36. Rf3+ {[%clk 0:00:06.6]} 36... Ke7 {[%clk 0:01:49.9]} 37.
a4 {[%clk 0:00:07.5]} 37... Kd6 {[%clk 0:01:47.6]} 38. h4 {[%clk 0:00:07.2]}
38... Rb2 {[%clk 0:01:48.1]} 39. c4 {[%clk 0:00:06.9]} 39... Kc5 {[%clk
0:01:48.7]} 40. h5 {[%clk 0:00:07.3]} 40... Kb4 {[%clk 0:01:49.1]} 41. g4 {[%clk
0:00:07.8]} 41... c6 {[%clk 0:01:49.4]} 42. g5 {[%clk 0:00:07.7]} 42... Rd2
{[%clk 0:01:50.1]} 43. Kg3 {[%clk 0:00:08.1]} 43... Rd4 {[%clk 0:01:47.9]} 44.
Rf4 {[%clk 0:00:07.4]} 44... Rd6 {[%clk 0:01:46.7]} 45. Rf3 {[%clk 0:00:07.2]}
45... Rd4 {[%clk 0:01:46.5]} 46. Rf4 {[%clk 0:00:06.8]} 46... Rd6 {[%clk
0:01:45.2]} 47. g6 {[%clk 0:00:07]} 47... Kxb3 {[%clk 0:01:44.3]} 48. Rf7 {[%clk
0:00:07.2]} 48... Kxa4 {[%clk 0:01:42.1]} 49. Rxg7 {[%clk 0:00:07.5]} 49... b5
{[%clk 0:01:41.8]} 50. cxb5 {[%clk 0:00:07.2]} 50... cxb5 {[%clk 0:01:42.7]} 51.
h6 {[%clk 0:00:07.8]} 51... Rd3+ {[%clk 0:01:42.4]} 52. Kg2 {[%clk 0:00:07.1]}
52... Rd5 {[%clk 0:01:41.9]} 53. h7 {[%clk 0:00:07.6]} 53... Rh5 {[%clk
0:01:42.5]} 54. Rg8 {[%clk 0:00:08.1]} 1-0

[Event "*** Titled Tuesday Blitz"]
[Site "Chess.com"]
[Date "2021.02.16"]
[Round "10"]
[White "MasterMK73"]
[Black "dosto07"]
[Result "1-0"]
[WhiteElo "2280"]
[BlackElo "2404"]
[TimeControl "180+1"]
[EndTime "11:58:27 PST"]
[Termination "MasterMK73 won by resignation"]

1. e4 {[%clk 0:03:00.9]} 1... e5 {[%clk 0:02:58.8]} 2. Nc3 {[%clk 0:02:59.4]}
2... Nf6 {[%clk 0:02:57.2]} 3. g3 {[%clk 0:02:58.8]} 3... d5 {[%clk 0:02:55.6]}
4. exd5 {[%clk 0:02:58.1]} 4... Nxd5 {[%clk 0:02:56.1]} 5. Bg2 {[%clk
0:02:58.3]} 5... Nxc3 {[%clk 0:02:56.6]} 6. bxc3 {[%clk 0:02:58]} 6... Bc5
{[%clk 0:02:54.6]} 7. Ne2 {[%clk 0:02:47.5]} 7... O-O {[%clk 0:02:52.6]} 8. O-O
{[%clk 0:02:46.6]} 8... Nc6 {[%clk 0:02:52.1]} 9. Rb1 {[%clk 0:02:45.7]} 9...
Bb6 {[%clk 0:02:49.9]} 10. d3 {[%clk 0:02:43.8]} 10... Be6 {[%clk 0:02:49.1]}
11. c4 {[%clk 0:02:43.1]} 11... Qd7 {[%clk 0:02:43.4]} 12. Be3 {[%clk
0:02:40.1]} 12... Rab8 {[%clk 0:02:33.4]} 13. Nc3 {[%clk 0:02:18]} 13... Bh3
{[%clk 0:02:26.6]} 14. Nd5 {[%clk 0:02:08.7]} 14... Bxg2 {[%clk 0:02:24.3]} 15.
Kxg2 {[%clk 0:02:07.2]} 15... Bxe3 {[%clk 0:02:18.3]} 16. fxe3 {[%clk
0:01:56.6]} 16... Ne7 {[%clk 0:02:17.6]} 17. e4 {[%clk 0:01:50.8]} 17... c6
{[%clk 0:02:15.5]} 18. Ne3 {[%clk 0:01:49.6]} 18... b6 {[%clk 0:02:02]} 19. Nf5
{[%clk 0:01:46.1]} 19... Nxf5 {[%clk 0:01:59.2]} 20. Rxf5 {[%clk 0:01:44.3]}
20... f6 {[%clk 0:01:57.9]} 21. Qf3 {[%clk 0:01:37.3]} 21... c5 {[%clk
0:01:55.9]} 22. Rf1 {[%clk 0:01:32.9]} 22... Qa4 {[%clk 0:01:47.8]} 23. Rf2
{[%clk 0:01:32.9]} 23... Qxa2 {[%clk 0:01:43.9]} 24. g4 {[%clk 0:01:33]} 24...
h6 {[%clk 0:01:42.1]} 25. h4 {[%clk 0:01:32.3]} 25... Qa1 {[%clk 0:01:35.2]} 26.
g5 {[%clk 0:01:29]} 26... Qc1 {[%clk 0:01:14.8]} 27. gxf6 {[%clk 0:01:20.7]}
27... Rxf6 {[%clk 0:01:11.1]} 28. Rxf6 {[%clk 0:01:18.5]} 28... gxf6 {[%clk
0:01:10]} 29. Qxf6 {[%clk 0:01:19]} 29... Qe3 {[%clk 0:00:57.6]} 30. Qg6+ {[%clk
0:01:12]} 30... Kh8 {[%clk 0:00:56.3]} 31. Qf6+ {[%clk 0:01:06.2]} 31... Kg8
{[%clk 0:00:54.4]} 32. Qxe5 {[%clk 0:01:02]} 32... Rd8 {[%clk 0:00:42.3]} 33.
Qe6+ {[%clk 0:01:00.9]} 33... Kh7 {[%clk 0:00:36.8]} 34. Qe7+ {[%clk 0:00:57.9]}
34... Kg6 {[%clk 0:00:35.8]} 35. Rf6+ {[%clk 0:00:54.3]} 35... Kh5 {[%clk
0:00:34.7]} 36. Qe5+ {[%clk 0:00:50]} 36... Kxh4 {[%clk 0:00:30.6]} 37. Rf4+
{[%clk 0:00:48.6]} 37... Qxf4 {[%clk 0:00:29.8]} 38. Qxf4+ {[%clk 0:00:48.6]}
38... Kh5 {[%clk 0:00:30.3]} 39. Qf5+ {[%clk 0:00:47.8]} 39... Kh4 {[%clk
0:00:28.8]} 40. Qf6+ {[%clk 0:00:47.8]} 1-0

[Event "*** Titled Tuesday Blitz"]
[Site "Chess.com"]
[Date "2021.02.16"]
[Round "10"]
[White "lagedema"]
[Black "shaheus"]
[Result "1-0"]
[WhiteElo "2567"]
[BlackElo "2426"]
[TimeControl "180+1"]
[EndTime "11:58:28 PST"]
[Termination "lagedema won on time"]

1. e4 {[%clk 0:02:59.4]} 1... c5 {[%clk 0:02:59.5]} 2. Nf3 {[%clk 0:02:59.9]}
2... Nc6 {[%clk 0:02:59.7]} 3. Bb5 {[%clk 0:03:00.2]} 3... g6 {[%clk 0:02:59.2]}
4. Bxc6 {[%clk 0:02:59.6]} 4... dxc6 {[%clk 0:02:59.7]} 5. h3 {[%clk 0:02:58.6]}
5... Bg7 {[%clk 0:02:59.9]} 6. d3 {[%clk 0:02:59]} 6... e5 {[%clk 0:02:51.7]} 7.
Be3 {[%clk 0:02:58.6]} 7... b6 {[%clk 0:02:50.7]} 8. a4 {[%clk 0:02:58.7]} 8...
Qe7 {[%clk 0:02:35.2]} 9. a5 {[%clk 0:02:57]} 9... Rb8 {[%clk 0:02:35.4]} 10.
axb6 {[%clk 0:02:56.4]} 10... axb6 {[%clk 0:02:35.7]} 11. Na3 {[%clk 0:02:55.2]}
11... Be6 {[%clk 0:02:24.1]} 12. O-O {[%clk 0:02:54.4]} 12... h6 {[%clk
0:02:08.8]} 13. Qd2 {[%clk 0:02:40.1]} 13... f5 {[%clk 0:02:03.6]} 14. Qe2
{[%clk 0:02:20.1]} 14... f4 {[%clk 0:01:59]} 15. Bd2 {[%clk 0:02:19.4]} 15... g5
{[%clk 0:01:59.1]} 16. Bc3 {[%clk 0:02:18.1]} 16... Qc7 {[%clk 0:01:58.7]} 17.
b4 {[%clk 0:02:14.2]} 17... cxb4 {[%clk 0:01:50.7]} 18. Bxb4 {[%clk 0:02:13.6]}
18... Ne7 {[%clk 0:01:50.3]} 19. Nc4 {[%clk 0:02:06.2]} 19... c5 {[%clk
0:01:49.2]} 20. Bc3 {[%clk 0:02:03.7]} 20... Nc6 {[%clk 0:01:45.8]} 21. Rfb1
{[%clk 0:01:58.6]} 21... O-O {[%clk 0:01:37]} 22. Nfd2 {[%clk 0:01:52.3]} 22...
Nd4 {[%clk 0:01:33.4]} 23. Bxd4 {[%clk 0:01:50]} 23... exd4 {[%clk 0:01:25.1]}
24. Ra6 {[%clk 0:01:48.5]} 24... Bxc4 {[%clk 0:01:13.8]} 25. Nxc4 {[%clk
0:01:46.1]} 25... b5 {[%clk 0:01:13.4]} 26. Nd6 {[%clk 0:01:43.3]} 26... Rf6
{[%clk 0:00:42.5]} 27. e5 {[%clk 0:01:42.6]} 27... Re6 {[%clk 0:00:37.9]} 28.
Qg4 {[%clk 0:01:36]} 28... Rxe5 {[%clk 0:00:24.8]} 29. Ne4 {[%clk 0:01:26.9]}
29... c4 {[%clk 0:00:17.2]} 30. Rba1 {[%clk 0:01:17.3]} 30... Kh7 {[%clk
0:00:12.7]} 31. Qh5 {[%clk 0:01:11]} 31... Rf8 {[%clk 0:00:10]} 32. Qg6+ {[%clk
0:01:07.9]} 32... Kh8 {[%clk 0:00:09.8]} 33. Ra7 {[%clk 0:01:07.9]} 33... Rf6
{[%clk 0:00:04.5]} 34. Nxf6 {[%clk 0:01:06.2]} 1-0

[Event "*** Titled Tuesday Blitz"]
[Site "Chess.com"]
[Date "2021.02.16"]
[Round "10"]
[White "Stewie_89"]
[Black "Sokoloco"]
[Result "1-0"]
[WhiteElo "2609"]
[BlackElo "2461"]
[TimeControl "180+1"]
[EndTime "11:58:29 PST"]
[Termination "Stewie_89 won on time"]

1. e4 {[%clk 0:03:00.9]} 1... g6 {[%clk 0:02:56.6]} 2. Nc3 {[%clk 0:02:58.5]}
2... Bg7 {[%clk 0:02:55.9]} 3. f4 {[%clk 0:02:59.1]} 3... d6 {[%clk 0:02:53.5]}
4. Nf3 {[%clk 0:02:59.3]} 4... c5 {[%clk 0:02:50.7]} 5. Bc4 {[%clk 0:02:59.3]}
5... Nc6 {[%clk 0:02:50.4]} 6. d3 {[%clk 0:02:58.3]} 6... e6 {[%clk 0:02:50.6]}
7. O-O {[%clk 0:02:55.6]} 7... Nge7 {[%clk 0:02:50.6]} 8. a4 {[%clk 0:02:51.3]}
8... O-O {[%clk 0:02:50]} 9. Ba2 {[%clk 0:02:48.3]} 9... Nb4 {[%clk 0:02:42.8]}
10. Bb3 {[%clk 0:02:47.6]} 10... d5 {[%clk 0:02:35.1]} 11. Qe2 {[%clk
0:02:41.3]} 11... d4 {[%clk 0:02:26.1]} 12. Nb5 {[%clk 0:02:37.2]} 12... a6
{[%clk 0:01:58.2]} 13. Na3 {[%clk 0:02:36.3]} 13... b6 {[%clk 0:01:58.8]} 14.
Bd2 {[%clk 0:02:35.6]} 14... a5 {[%clk 0:01:56.3]} 15. Nb5 {[%clk 0:02:27.5]}
15... Bb7 {[%clk 0:01:54.8]} 16. g4 {[%clk 0:02:27]} 16... Kh8 {[%clk
0:01:53.1]} 17. Rae1 {[%clk 0:02:23.3]} 17... f5 {[%clk 0:01:50.7]} 18. Bxb4
{[%clk 0:02:21.4]} 18... fxe4 {[%clk 0:01:34.8]} 19. Ng5 {[%clk 0:02:21]} 19...
exd3 {[%clk 0:01:09]} 20. Qxe6 {[%clk 0:02:11.8]} 20... Nd5 {[%clk 0:00:54.1]}
21. Nd6 {[%clk 0:02:06.9]} 21... Qf6 {[%clk 0:00:14.1]} 22. Bxd5 {[%clk
0:02:03.7]} 22... Qxe6 {[%clk 0:00:10.9]} 23. Bxe6 {[%clk 0:02:02.5]} 23... axb4
{[%clk 0:00:11.3]} 24. Ngf7+ {[%clk 0:01:59.5]} 24... Kg8 {[%clk 0:00:11.4]} 25.
cxd3 {[%clk 0:01:48.5]} 25... Ba6 {[%clk 0:00:07.6]} 26. Rf3 {[%clk 0:01:35.9]}
26... Ra7 {[%clk 0:00:07.5]} 27. f5 {[%clk 0:01:18.3]} 27... gxf5 {[%clk
0:00:03.6]} 28. gxf5 {[%clk 0:01:16.5]} 28... Bf6 {[%clk 0:00:03.1]} 29. Re4
{[%clk 0:01:10.7]} 29... Rfxf7 {[%clk 0:00:03.3]} 30. Nxf7 {[%clk 0:01:09.9]}
30... Rxf7 {[%clk 0:00:02.5]} 31. Rh3 {[%clk 0:01:00]} 31... Kf8 {[%clk
0:00:01.5]} 32. Bxf7 {[%clk 0:00:59.6]} 32... Kxf7 {[%clk 0:00:02.4]} 33. Rxh7+
{[%clk 0:00:59.5]} 33... Kg8 {[%clk 0:00:03.3]} 34. Ra7 {[%clk 0:00:56.1]} 1-0

[Event "*** Titled Tuesday Blitz"]
[Site "Chess.com"]
[Date "2021.02.16"]
[Round "10"]
[White "BvsN"]
[Black "eldur16"]
[Result "0-1"]
[WhiteElo "2354"]
[BlackElo "2492"]
[TimeControl "180+1"]
[EndTime "11:58:30 PST"]
[Termination "eldur16 won by resignation"]

1. c4 {[%clk 0:03:00.9]} 1... e5 {[%clk 0:02:58.2]} 2. Nc3 {[%clk 0:03:00.5]}
2... d6 {[%clk 0:02:58]} 3. g3 {[%clk 0:02:56]} 3... Be6 {[%clk 0:02:56.6]} 4.
Bg2 {[%clk 0:02:54.4]} 4... Nc6 {[%clk 0:02:56.3]} 5. Nd5 {[%clk 0:02:36.7]}
5... Qd7 {[%clk 0:02:49.9]} 6. e3 {[%clk 0:02:33.1]} 6... Nd8 {[%clk 0:02:42]}
7. Ne2 {[%clk 0:02:31.6]} 7... c6 {[%clk 0:02:41.6]} 8. Ndc3 {[%clk 0:02:31.8]}
8... Bxc4 {[%clk 0:02:40.3]} 9. d3 {[%clk 0:02:26.1]} 9... Be6 {[%clk
0:02:37.5]} 10. O-O {[%clk 0:02:26]} 10... Bh3 {[%clk 0:02:34.9]} 11. f4 {[%clk
0:02:25.8]} 11... Bxg2 {[%clk 0:02:32.5]} 12. Kxg2 {[%clk 0:02:26.7]} 12... Nf6
{[%clk 0:02:29.2]} 13. fxe5 {[%clk 0:02:26.1]} 13... dxe5 {[%clk 0:02:28.8]} 14.
Qc2 {[%clk 0:02:07]} 14... Be7 {[%clk 0:02:27.3]} 15. Bd2 {[%clk 0:02:07.2]}
15... h5 {[%clk 0:02:25.6]} 16. h3 {[%clk 0:02:05.8]} 16... Ne6 {[%clk
0:02:17.8]} 17. Ne4 {[%clk 0:01:52.1]} 17... O-O-O {[%clk 0:02:10.7]} 18. Nf2
{[%clk 0:01:47.4]} 18... Nc5 {[%clk 0:02:03.2]} 19. Nc1 {[%clk 0:01:44.8]} 19...
Kb8 {[%clk 0:01:47.6]} 20. b4 {[%clk 0:01:44.8]} 20... Ne6 {[%clk 0:01:41.4]}
21. Bc3 {[%clk 0:01:41.3]} 21... Bd6 {[%clk 0:01:32.2]} 22. Nb3 {[%clk
0:01:39.4]} 22... Nd5 {[%clk 0:01:30.2]} 23. Qd2 {[%clk 0:01:32.1]} 23... f6
{[%clk 0:01:23.2]} 24. Ne4 {[%clk 0:01:31.7]} 24... Be7 {[%clk 0:01:19.5]} 25.
a4 {[%clk 0:01:25.7]} 25... Nxc3 {[%clk 0:01:12.8]} 26. Qxc3 {[%clk 0:01:26.1]}
26... Qxd3 {[%clk 0:01:12.2]} 27. Qxd3 {[%clk 0:01:25.3]} 27... Rxd3 {[%clk
0:01:11.3]} 28. Nbc5 {[%clk 0:01:25.7]} 28... Nxc5 {[%clk 0:01:09.1]} 29. Nxc5
{[%clk 0:01:26.2]} 29... Bxc5 {[%clk 0:01:08.3]} 30. bxc5 {[%clk 0:01:26.8]}
30... Rxe3 {[%clk 0:01:07.7]} 31. Rf2 {[%clk 0:01:27.2]} 31... Rd8 {[%clk
0:01:04.9]} 32. Rb1 {[%clk 0:01:25.4]} 32... Red3 {[%clk 0:01:02.2]} 33. Rbb2
{[%clk 0:01:21.6]} 33... Kc8 {[%clk 0:01:01]} 34. g4 {[%clk 0:01:22.1]} 34...
hxg4 {[%clk 0:01:00.1]} 35. hxg4 {[%clk 0:01:22.4]} 35... R8d4 {[%clk
0:00:59.5]} 36. Rb1 {[%clk 0:01:16.9]} 36... Rxg4+ {[%clk 0:00:58.9]} 37. Kf1
{[%clk 0:01:17.5]} 37... Rxa4 {[%clk 0:00:58.6]} 38. Rfb2 {[%clk 0:01:17.3]}
38... Rd7 {[%clk 0:00:57.3]} 39. Rb3 {[%clk 0:01:16.1]} 39... Rc4 {[%clk
0:00:56.5]} 40. Ra3 {[%clk 0:01:14.7]} 40... a6 {[%clk 0:00:56.3]} 41. Rh3
{[%clk 0:01:15.3]} 41... Rxc5 {[%clk 0:00:55.6]} 42. Rb2 {[%clk 0:01:12.4]}
42... Rcd5 {[%clk 0:00:53.8]} 43. Ke2 {[%clk 0:01:09.5]} 43... f5 {[%clk
0:00:53]} 44. Rh8+ {[%clk 0:01:09.6]} 44... Kc7 {[%clk 0:00:52.4]} 45. Ke3
{[%clk 0:01:09.5]} 45... Rd3+ {[%clk 0:00:50.8]} 46. Ke2 {[%clk 0:01:09.6]}
46... e4 {[%clk 0:00:50.4]} 47. Ra8 {[%clk 0:01:08.4]} 47... Rg3 {[%clk
0:00:49]} 48. Kf1 {[%clk 0:01:05.2]} 48... f4 {[%clk 0:00:48.2]} 49. Ra7 {[%clk
0:01:04.9]} 49... Rd1+ {[%clk 0:00:39.3]} 50. Kf2 {[%clk 0:01:00.2]} 50... e3+
{[%clk 0:00:38.8]} 51. Ke2 {[%clk 0:00:59.7]} 51... Rg2+ {[%clk 0:00:38.3]} 52.
Kxd1 {[%clk 0:00:59.7]} 52... Rxb2 {[%clk 0:00:37.8]} 0-1

[Event "*** Titled Tuesday Blitz"]
[Site "Chess.com"]
[Date "2021.02.16"]
[Round "10"]
[White "ckgchess"]
[Black "azikom"]
[Result "1/2-1/2"]
[WhiteElo "2761"]
[BlackElo "2657"]
[TimeControl "180+1"]
[EndTime "11:58:31 PST"]
[Termination "Game drawn by repetition"]

1. e4 {[%clk 0:03:00.9]} 1... e5 {[%clk 0:02:59.1]} 2. Nc3 {[%clk 0:03:00.1]}
2... Nc6 {[%clk 0:02:59.4]} 3. g3 {[%clk 0:03:00.6]} 3... Bc5 {[%clk 0:02:58.3]}
4. Bg2 {[%clk 0:03:00.9]} 4... d6 {[%clk 0:02:58.8]} 5. Nge2 {[%clk 0:03:01.4]}
5... Nf6 {[%clk 0:02:57.4]} 6. d3 {[%clk 0:03:00.6]} 6... O-O {[%clk 0:02:56.9]}
7. O-O {[%clk 0:03:00.7]} 7... Nd4 {[%clk 0:02:56.7]} 8. h3 {[%clk 0:02:59.6]}
8... Nxe2+ {[%clk 0:02:56]} 9. Qxe2 {[%clk 0:02:55.1]} 9... c6 {[%clk
0:02:52.8]} 10. Kh2 {[%clk 0:02:54]} 10... Re8 {[%clk 0:02:52.6]} 11. f4 {[%clk
0:02:50.6]} 11... h6 {[%clk 0:02:44.5]} 12. f5 {[%clk 0:02:45.3]} 12... d5
{[%clk 0:02:39.5]} 13. g4 {[%clk 0:02:45.9]} 13... dxe4 {[%clk 0:02:36.3]} 14.
Nxe4 {[%clk 0:02:43]} 14... Nxe4 {[%clk 0:02:35.3]} 15. Bxe4 {[%clk 0:02:43.9]}
15... f6 {[%clk 0:02:24.9]} 16. h4 {[%clk 0:02:43.7]} 16... Be7 {[%clk
0:02:22.4]} 17. Rg1 {[%clk 0:02:41.2]} 17... Bd7 {[%clk 0:02:11.1]} 18. g5
{[%clk 0:02:00.1]} 18... fxg5 {[%clk 0:02:10.8]} 19. hxg5 {[%clk 0:02:01]} 19...
Bxg5 {[%clk 0:02:10.9]} 20. Bxg5 {[%clk 0:02:00.9]} 20... hxg5 {[%clk
0:02:11.3]} 21. Qh5 {[%clk 0:01:58.3]} 21... Qf6 {[%clk 0:02:08.3]} 22. Rxg5
{[%clk 0:01:58.3]} 22... Re7 {[%clk 0:02:08.1]} 23. Rag1 {[%clk 0:01:47.7]}
23... Be8 {[%clk 0:02:07.8]} 24. Rg6 {[%clk 0:01:07.4]} 24... Rd8 {[%clk
0:02:04.1]} 25. Qh3 {[%clk 0:00:44.7]} 25... Bxg6 {[%clk 0:02:01.1]} 26. Rxg6
{[%clk 0:00:45.6]} 26... Qf8 {[%clk 0:01:50.1]} 27. f6 {[%clk 0:00:46]} 27...
Rf7 {[%clk 0:01:49.7]} 28. Qe6 {[%clk 0:00:15]} 28... Rd6 {[%clk 0:01:14.7]} 29.
fxg7 {[%clk 0:00:09.1]} 29... Qd8 {[%clk 0:01:12.1]} 30. Qxd6 {[%clk 0:00:07.5]}
30... Qh4+ {[%clk 0:01:09.1]} 31. Kg1 {[%clk 0:00:08]} 31... Qe1+ {[%clk
0:01:03.3]} 32. Kh2 {[%clk 0:00:06.9]} 32... Qh4+ {[%clk 0:00:56.5]} 33. Kg1
{[%clk 0:00:07.1]} 33... Qe1+ {[%clk 0:00:54.5]} 34. Kh2 {[%clk 0:00:07.2]}
34... Qh4+ {[%clk 0:00:51.6]} 1/2-1/2

[Event "*** Titled Tuesday Blitz"]
[Site "Chess.com"]
[Date "2021.02.16"]
[Round "10"]
[White "Manukyan_Artak"]
[Black "TregubovP"]
[Result "0-1"]
[WhiteElo "2413"]
[BlackElo "2558"]
[TimeControl "180+1"]
[EndTime "11:58:37 PST"]
[Termination "TregubovP won on time"]

1. e4 {[%clk 0:03:00.9]} 1... e6 {[%clk 0:02:59.5]} 2. d4 {[%clk 0:03:00.4]}
2... d5 {[%clk 0:02:59.8]} 3. e5 {[%clk 0:03:00.9]} 3... c5 {[%clk 0:02:59.4]}
4. c3 {[%clk 0:03:01.3]} 4... Nc6 {[%clk 0:03:00]} 5. Nf3 {[%clk 0:03:01.5]}
5... Qb6 {[%clk 0:03:00.4]} 6. a3 {[%clk 0:03:01.6]} 6... Bd7 {[%clk 0:02:59.2]}
7. b4 {[%clk 0:03:01.4]} 7... cxd4 {[%clk 0:02:59.8]} 8. cxd4 {[%clk 0:03:02.3]}
8... Rc8 {[%clk 0:03:00.3]} 9. Bb2 {[%clk 0:03:01.1]} 9... Nh6 {[%clk 0:03:00]}
10. Nc3 {[%clk 0:02:59.6]} 10... Na5 {[%clk 0:02:59.5]} 11. Na4 {[%clk
0:02:59.7]} 11... Qc6 {[%clk 0:02:58.7]} 12. bxa5 {[%clk 0:02:29.7]} 12... Qxa4
{[%clk 0:02:57.5]} 13. Qxa4 {[%clk 0:02:27.6]} 13... Bxa4 {[%clk 0:02:57.9]} 14.
Bd3 {[%clk 0:02:25.9]} 14... Be7 {[%clk 0:02:47.7]} 15. h3 {[%clk 0:02:09.3]}
15... Kd7 {[%clk 0:02:46.5]} 16. Kd2 {[%clk 0:02:08.8]} 16... a6 {[%clk
0:02:24.2]} 17. Rhc1 {[%clk 0:02:07.5]} 17... Bb5 {[%clk 0:02:23.2]} 18. Bxb5+
{[%clk 0:01:38.4]} 18... axb5 {[%clk 0:02:23]} 19. Rxc8 {[%clk 0:01:36.9]} 19...
Rxc8 {[%clk 0:02:22.1]} 20. Bc3 {[%clk 0:01:18.6]} 20... Rc4 {[%clk 0:02:20.5]}
21. Rb1 {[%clk 0:01:13.9]} 21... Kc6 {[%clk 0:02:20]} 22. Bb4 {[%clk 0:01:13.4]}
22... Bxb4+ {[%clk 0:02:17.2]} 23. axb4 {[%clk 0:00:59]} 23... Nf5 {[%clk
0:02:15.1]} 24. Kd3 {[%clk 0:00:53.5]} 24... h5 {[%clk 0:02:14.4]} 25. Rb2
{[%clk 0:00:39.9]} 25... Kd7 {[%clk 0:02:14.4]} 26. h4 {[%clk 0:00:28.5]} 26...
f6 {[%clk 0:02:14.1]} 27. g3 {[%clk 0:00:26.6]} 27... Ke7 {[%clk 0:02:13.6]} 28.
exf6+ {[%clk 0:00:18]} 28... gxf6 {[%clk 0:02:13]} 29. Rb1 {[%clk 0:00:18]}
29... Kd6 {[%clk 0:02:12.4]} 30. Rb2 {[%clk 0:00:12]} 30... e5 {[%clk
0:02:12.7]} 31. dxe5+ {[%clk 0:00:12.2]} 31... fxe5 {[%clk 0:02:13]} 32. Nd2
{[%clk 0:00:12.4]} 32... e4+ {[%clk 0:02:11.1]} 33. Ke2 {[%clk 0:00:12.5]} 33...
Rc3 {[%clk 0:02:04]} 34. Nb3 {[%clk 0:00:11.8]} 34... Rxb3 {[%clk 0:01:56.8]}
35. Rxb3 {[%clk 0:00:10.1]} 35... Nd4+ {[%clk 0:01:56.8]} 36. Ke3 {[%clk
0:00:09.5]} 36... Nxb3 {[%clk 0:01:57.7]} 37. f3 {[%clk 0:00:07]} 37... Ke5
{[%clk 0:01:50.8]} 38. g4 {[%clk 0:00:05.5]} 38... d4+ {[%clk 0:01:49]} 39. Kf2
{[%clk 0:00:05.5]} 39... e3+ {[%clk 0:01:45.3]} 40. Ke2 {[%clk 0:00:05.8]} 40...
hxg4 {[%clk 0:01:43.5]} 41. fxg4 {[%clk 0:00:05.8]} 41... Nc1+ {[%clk
0:01:41.4]} 42. Kd1 {[%clk 0:00:05.3]} 42... e2+ {[%clk 0:01:40.6]} 43. Kd2
{[%clk 0:00:05.3]} 43... Kf4 {[%clk 0:01:37.1]} 44. g5 {[%clk 0:00:05.4]} 44...
Kf3 {[%clk 0:01:36.4]} 45. g6 {[%clk 0:00:03.7]} 45... Kf2 {[%clk 0:01:35.6]}
46. g7 {[%clk 0:00:02.5]} 46... e1=Q+ {[%clk 0:01:35.8]} 47. Kc2 {[%clk
0:00:02.9]} 47... d3+ {[%clk 0:01:30.8]} 48. Kb2 {[%clk 0:00:02.2]} 48... Qxb4+
{[%clk 0:01:30]} 49. Kxc1 {[%clk 0:00:02.6]} 49... Qb3 {[%clk 0:01:27.6]} 0-1